Cogmind - Beta 15 @@@ ROGUE MODE // 2025.09.04 @ 11:54:13 Player: shapeshifter Result: Destroyed by Enhanced Grunt with Neutron Cannon Performance ------------- Evolutions (3) 1500 Regions Visited (11) 2200 Robots Destroyed (149) 745 Value Destroyed (5578) 5578 Prototype IDs (242) 4840 Alien Tech Used (0) 0 Bonus (6241) 6241 TOTAL SCORE: 21104 Bonus ------- High Alert Combat Kills 1361 Follower Combat Kills 80 Entered Garrisons 200 Used RIF Installer 1000 Aligned with FarCom 300 Met Data Miner 300 Used Data Conduit 3000 Cogmind --------- Core Integrity 0/700 Matter 252/300 Energy 100/100 System Corruption 1% Temperature Cool (0) Movement Core (50) Location -7/Data Miner Parts ------- > --- POWER (1) -------- (None) > --- PROPULSION (4) --- (None) > --- UTILITY (4) ------ Improved Signal Interpreter System Mapper Ghost Barrier > --- WEAPON (4) ------- Remote Datajack > --- INVENTORY (5) ---- Focal Shield Peak State ------------ > --- POWER ------------ (None) > --- PROPULSION ------- Flying Fortress v7 > --- UTILITY ---------- High-capacity Storage Unit Experimental Sensor Array Improved Signal Interpreter Advanced Targeting Computer > --- WEAPON ----------- XL Autogun Subcomponent XL Autogun Subcomponent XL Autogun Subcomponent > --- INVENTORY -------- Enhanced Nuclear Core Improved VTOL Module Improved VTOL Module Cooled VTOL Module Cooled VTOL Module Huge Storage Unit Recoil Stabilizer Kinecellerator Relay Coupler [Grunt] Relay Coupler [Sentry] Relay Coupler [Demolisher] Relay Coupler [Specialist] Relay Coupler [Heavy] Cooled Particle Cannon Missile Launcher Missile Launcher Remote Datajack Axe Longsword +1 [Rating: 74] Favorites ----------- Power Improved Ion Engine Engine Improved Ion Engine Power Core Enhanced Nuclear Core Propulsion Improved Treads Treads Improved Treads Leg Aluminum Leg Wheel Armored Wheel Flight Unit Improved VTOL Module Utility Huge Storage Unit Device Experimental Sensor Array Storage Huge Storage Unit Processor Targeting Computer Hackware Relay Coupler [Hunter] Protection Hardened Medium Armor Plating Weapon Heavy Assault Rifle Energy Cannon EM Pulse Cannon Ballistic Gun Heavy Assault Rifle Ballistic Cannon Assault Cannon Launcher Missile Launcher Special Weapon Remote Datajack Slashing Weapon Axe Build | -11 -10 -9 -9 -9 -8 -8 -8 -7 -7 -7 -7 ------- Run | Yrd Mat Mat Min Exi Min Mat Gar Fac Low Low Dat Slots Evolved 6 | . . 2 . . . 2 . 2 . . . Power . | . . . . . . . . . . . . Propulsion 2 | . . 1 . . . . . 1 . . . Utility 2 | . . . . . . 2 . . . . . Weapon 2 | . . 1 . . . . . 1 . . . Parts Attached 95 | 7 1 14 . 3 4 10 16 27 1 6 6 Power 11 | 1 . 2 . . . 2 1 5 . . . Engine 8 | 1 . 2 . . . 2 1 2 . . . Core 3 | . . . . . . . . 3 . . . Reactor . | . . . . . . . . . . . . Propulsion 23 | 2 . 6 . 2 . 3 2 4 . 4 . Treads 9 | 2 . . . . . 3 2 2 . . . Leg 1 | . . . . . . . . 1 . . . Wheel 8 | . . 6 . 2 . . . . . . . Hover . | . . . . . . . . . . . . Flight 5 | . . . . . . . . 1 . 4 . Utility 30 | 2 1 2 . 1 1 3 6 10 1 . 3 Device 7 | 1 . . . . . . 1 3 1 . 1 Storage 4 | 1 1 . . . . 1 . 1 . . . Processor 6 | . . 1 . . 1 . 1 3 . . . Hackware 3 | . . . . . . . . 1 . . 2 Protection 10 | . . 1 . 1 . 2 4 2 . . . Artifact . | . . . . . . . . . . . . Weapon 31 | 2 . 4 . . 3 2 7 8 . 2 3 Energy Gun . | . . . . . . . . . . . . Energy Cannon 2 | . . . . . 1 . . 1 . . . Ballistic Gun 19 | 2 . 4 . . 1 2 4 6 . . . Ballistic Cannon 1 | . . . . . 1 . . . . . . Launcher 3 | . . . . . . . . 1 . 1 1 Special Weapon 2 | . . . . . . . 1 . . 1 . Impact Weapon . | . . . . . . . . . . . . Slashing Weapon 4 | . . . . . . . 2 . . . 2 Piercing Weapon . | . . . . . . . . . . . . Special Melee Weapon . | . . . . . . . . . . . . Unidentified Prototypes 9 | . . . . . . . . 5 . 2 2 Parts Lost 28 | . . 4 . . . 1 6 8 . . 9 Power 2 | . . 1 . . . . 1 . . . . Propulsion 10 | . . . . . . . 1 5 . . 4 Utility 6 | . . 1 . . . . 2 2 . . 1 Weapon 10 | . . 2 . . . 1 2 1 . . 4 Highest Loss Streak 9 | . . 1 . . . 1 2 4 . . 9 To Critical Strikes . | . . . . . . . . . . . . Average Backups 18 | 2 7 21 24 23 19 18 18 20 18 16 4 Power . | . 1 1 1 1 1 . . . 1 . . Propulsion 3 | 1 2 9 9 7 6 5 2 3 4 . . Utility 7 | . 2 6 7 8 5 4 7 10 7 10 2 Weapon 5 | . . 4 7 6 6 7 6 5 5 4 1 Tool/Special . | . . . . . . . . . . . . Unused Backups 51 | . 1 8 1 8 1 4 8 8 . 3 9 Power 2 | . 1 . . . . . . 1 . . . Propulsion 7 | . . 4 . 2 . . . . . . 1 Utility 29 | . . 3 1 3 . 2 5 5 . 3 7 Weapon 12 | . . 1 . 3 1 2 2 2 . . 1 Tool/Special 1 | . . . . . . . 1 . . . . Average Slot Usage (%) 94 | . 100 96 100 100 99 98 99 84 61 98 67 Engine 7 | . 14 10 11 11 11 9 8 2 . . . Core 1 | . . . . . . . . 4 . 6 5 Treads 16 | . 28 3 . . . 2 27 27 . . . Wheel 7 | . . 27 33 33 33 24 . . . . . Flight 3 | . . . . . . . . . 7 29 24 Device 3 | . 14 3 . . . 1 1 3 7 7 6 Storage 9 | . 14 11 11 11 11 16 9 7 7 7 . Processor 9 | . . 3 11 7 4 9 9 10 15 15 7 Protection 6 | . . 3 . 3 6 8 15 6 . . . Ballistic Gun 23 | . 28 31 33 33 28 19 24 16 23 23 1 Ballistic Cannon 1 | . . . . . 4 8 1 . . . . Peak Build Rating 74 | 7 9 20 21 27 29 34 38 73 74 74 64 Average Rating 37 | 5 7 16 20 22 27 32 32 56 72 65 41 On Entrance 32 | . 7 9 20 21 27 27 31 34 73 74 67 Naked Turns . | . . . . . . . . . . . . Heaviest Build 115 | 14 89 97 96 103 103 107 109 115 50 64 18 Greatest Support 89 | 40 40 40 36 36 36 69 69 89 50 20 20 Greatest Overweight (x) 34 | . 2 3 2 2 2 2 1 34 . 3 . Average Overweight (x) 1 | . . 2 2 2 2 1 1 1 . 2 . Largest Inventory Capacity 25 | 8 25 25 25 25 25 25 25 25 20 20 20 Average Capacity 22 | 7 14 25 25 25 25 25 25 24 20 20 5 Most Carried 25 | 4 15 25 25 25 25 25 25 25 20 20 19 Average Carried 21 | 2 7 21 24 24 24 24 24 24 18 17 3 Final Capacity 25 | 8 25 25 25 25 25 25 25 20 20 20 5 Final Carried 25 | 3 15 25 25 25 25 25 25 18 20 19 1 Class Distribution -------------------- 25% | Bothacker-Gunner 19% | Bothacker-Skirmisher 12% | Gunner 11% | Mutant 8% | Bothacker-Tank 7% | Scavenger-Tank 6% | Skirmisher 3% | Tank Dominant Class ---------------- Mutant | -10/Materials Gunner | -9/Materials Gunner | -9/Mines Gunner | -9/Exiles Skirmisher | -8/Mines Skirmisher | -8/Materials Bothacker-Tank | -8/Garrison Bothacker-Gunner | -7/Factory Bothacker-Skirmisher | -7/Lower Caves Bothacker-Skirmisher | -7/Lower Caves Sprinter | -7/Data Miner Resources | -11 -10 -9 -9 -9 -8 -8 -8 -7 -7 -7 -7 ----------- Run | Yrd Mat Mat Min Exi Min Mat Gar Fac Low Low Dat Matter Collected 4747 | 290 147 412 20 60 138 270 969 2020 133 263 25 Remotely . | . . . . . . . . . . . . Salvage Created 5922 | 116 361 646 . . 186 113 962 3197 61 169 111 Parts 343 | 7 23 43 . . 15 10 46 183 . 11 5 Haulers Intercepted 5 | . . 1 . . . . . 4 . . . Recyclers Shooed . | . . . . . . . . . . . . Parts Field Recycled . | . . . . . . . . . . . . Retrieved Matter . | . . . . . . . . . . . . Parts Self-Destructed 10 | . . . . . . . . . . 10 . Prevented . | . . . . . . . . . . . . Kills | -11 -10 -9 -9 -9 -8 -8 -8 -7 -7 -7 -7 ------- Run | Yrd Mat Mat Min Exi Min Mat Gar Fac Low Low Dat Combat Hostiles Destroyed 107 | . 10 11 . . 7 2 19 48 . 9 1 Melee 2 | . . . . . . . . 1 . . 1 Guns 95 | . 10 11 . . 7 2 18 47 . . . Cannons 1 | . . . . . . . 1 . . . . AOE 9 | . . . . . . . . . . 9 . Classes Destroyed 15 | 2 3 2 . . 1 . 2 5 . . . Worker 11 | . . . . . . . . 11 . . . Builder 9 | . . . . . . . . 9 . . . Tunneler 1 | 1 . . . . . . . . . . . Hauler 5 | . . 1 . . . . . 4 . . . Recycler 5 | 1 . . . . . . . 4 . . . Operator 3 | . . . . . . . . 3 . . . Watcher 7 | . 1 2 . . . . . 4 . . . Swarmer 20 | . 3 . . . 4 . . 9 . 4 . Grunt 49 | . 7 4 . . 2 . 10 22 . 4 . Brawler 4 | . . . . . 1 . . 3 . . . Duelist 1 | . . . . . . . . 1 . . . Protector 2 | . . . . . . . . 2 . . . Sentry 19 | . . 7 . . . 2 4 6 . . . Hunter 3 | . . . . . . . 2 . . 1 . Programmer 8 | . . . . . . . 3 5 . . . Enhanced Grunt 1 | . . . . . . . . . . . 1 Best Kill Streak 22 | 1 4 3 . . 4 2 5 22 . 4 1 Combat Bots Only 7 | . 4 2 . . 4 2 5 7 . 4 1 Max Kills in Single Turn 13 | 1 1 1 . . 1 1 1 13 . 4 1 Gunslinging . | . . . . . . . . . . . . Exploded 4 | . . . . . . . . . . 4 . Melee 1 | . . . . . . . . 1 . . 1 Uniques/NPCs Destroyed 1 | . . . . . . . . . . . 1 Data Miner (-7/Data Miner) Combat | -11 -10 -9 -9 -9 -8 -8 -8 -7 -7 -7 -7 -------- Run | Yrd Mat Mat Min Exi Min Mat Gar Fac Low Low Dat Hostile Shots Fired 586 | . 45 61 . . 31 20 120 252 . 27 30 Missed 175 | . 8 18 . . 12 4 25 87 . 10 11 Hits 411 | . 37 43 . . 19 16 95 165 . 17 19 Melee 2 | . . . . . . . . . . 2 . Projectile 409 | . 37 43 . . 19 16 95 165 . 15 19 AOE 1 | . . . . . . . . 1 . . . Critical Strikes 12 | . 1 2 . . . 1 4 3 . 1 . Actively Blocked 1 | . . . . . . . 1 . . . . Damage Taken 6399 | . 465 598 . . 166 224 1459 2323 . 236 928 Core 987 | . 93 89 . . 8 12 79 187 . 49 470 Absorbed by Shields 47 | . . . . . . . . 47 . . . Redirected to Shielding 165 | . . . . . . . 112 53 . . . Core Remaining (%) 80 | 100 62 . . . 75 . 83 . . . . Volleys Fired 343 | 5 35 38 . . 14 14 76 142 1 16 2 Largest 4 | 2 2 3 . . 3 3 3 4 3 3 1 Hottest 97 | 40 40 69 . . 69 80 83 97 60 60 36 Shots Fired 736 | 10 71 100 . . 42 22 215 237 3 34 2 Gun 704 | 10 71 100 . . 42 14 202 235 3 27 . Cannon 21 | . . . . . . 8 13 . . . . Launcher 8 | . . . . . . . . . . 7 1 Special 3 | . . . . . . . . 2 . . 1 Kinetic 725 | 10 71 100 . . 42 22 215 235 3 27 . Thermal . | . . . . . . . . . . . . Explosive 8 | . . . . . . . . . . 7 1 Electromagnetic . | . . . . . . . . . . . . Robot Hit Streak 21 | 3 9 12 . . 17 3 21 17 1 3 1 Robot Miss Streak 6 | 1 3 4 . . 6 3 2 5 1 5 1 Penetration Max 1 | . . . . . . . . 1 . . . Secondary Targets 13 | . 1 2 . . 2 1 5 2 . . . Max Gunslinging Chain 1 | . 1 1 . . 1 1 1 1 . . . Shots Hit Robots 488 | 6 45 60 . . 25 8 142 172 1 15 14 Core Hits 270 | 3 22 25 . . 12 5 47 130 1 16 9 Critical Kills 2 | . . 1 . . . . 1 . . . . Critical Parts Destroyed 2 | . . 1 . . . . 1 . . . . Critical Strikes 6 | . . 2 . . . . 3 . . . 1 Destroy 5 | . . 2 . . . . 3 . . . . Sever 1 | . . . . . . . . . . . 1 Melee Attacks 42 | . . . . . . . 15 1 . . 26 Impact . | . . . . . . . . . . . . Slashing 42 | . . . . . . . 15 1 . . 26 Piercing . | . . . . . . . . . . . . Sneak Attacks 1 | . . . . . . . . . . . 1 Combat Hostiles . | . . . . . . . . . . . . Follow-up Attacks 3 | . . . . . . . . . . . 3 Damage Inflicted 13397 | 56 475 790 . . 397 87 2119 7858 18 1002 595 Guns 10776 | 56 475 790 . . 397 87 2017 6721 18 215 . Cannons 102 | . . . . . . . 102 . . . . Explosions 1969 | . . . . . . . . 1098 . 787 84 Melee 550 | . . . . . . . . 39 . . 511 Ramming . | . . . . . . . . . . . . Kinetic 10878 | 56 475 790 . . 397 87 2119 6721 18 215 . Thermal 953 | . . . . . . . . 953 . . . Explosive 1016 | . . . . . . . . 145 . 787 84 Electromagnetic . | . . . . . . . . . . . . Impact . | . . . . . . . . . . . . Slashing 550 | . . . . . . . . 39 . . 511 Piercing . | . . . . . . . . . . . . Highest Corruption 5 | . 1 . . . . . 1 5 5 1 1 Average Corruption 2 | . 1 . . . . . 1 4 1 1 1 Corruption Purged 4 | . . . . . . . . . 4 . . Corruption Blocked . | . . . . . . . . . . . . Effects 64 | . 6 . . . . . 4 44 3 6 1 Message Errors 16 | . 4 . . . . . 3 7 1 1 . Matter Fused 17 | . 1 . . . . . . 12 2 2 . Heat Flow Errors 3 | . . . . . . . . 3 . . . Energy Discharges 9 | . . . . . . . . 7 . 2 . Parts Fused 1 | . . . . . . . . 1 . . . Data Loss (minor) 7 | . . . . . . . 1 4 . 1 1 Data Loss (major) 3 | . . . . . . . . 3 . . . Misfires 3 | . 1 . . . . . . 2 . . . Alerts 1 | . . . . . . . . 1 . . . Weapon Failures 4 | . . . . . . . . 4 . . . Overload Shots . | . . . . . . . . . . . . Overflow Damage 48 | . . . . . . . . 41 . 5 2 Projectiles . | . . . . . . . . . . . . Explosions 48 | . . . . . . . . 41 . 5 2 Melee . | . . . . . . . . . . . . Knockbacks . | . . . . . . . . . . . . Impact . | . . . . . . . . . . . . Kinetic . | . . . . . . . . . . . . Secondary . | . . . . . . . . . . . . Self-Inflicted Damage 73 | . . . . . . . . . . 16 57 Shots 2 | . . . . . . . . . . 1 1 Rammed . | . . . . . . . . . . . . Targets Rammed . | . . . . . . . . . . . . Kicked . | . . . . . . . . . . . . Crushed . | . . . . . . . . . . . . Highest Temperature 331 | . 27 39 . . 77 55 235 331 34 108 . Average Temperature 62 | . 8 8 . . 36 23 77 80 20 36 . Received Heat Transfer 1974 | . 210 276 . . 36 90 576 687 . 99 . Effects 5 | . . . . . . . . 5 . . . Energy Bleed 1 | . . . . . . . . 1 . . . Interference 4 | . . . . . . . . 4 . . . Siege Activations . | . . . . . . . . . . . . Martial Activations . | . . . . . . . . . . . . Shielding Activations . | . . . . . . . . . . . . Robots Disrupted . | . . . . . . . . . . . . Combat Hostiles . | . . . . . . . . . . . . Robots Corrupted . | . . . . . . . . . . . . Combat Hostiles . | . . . . . . . . . . . . Parts Fried . | . . . . . . . . . . . . Impact Corruptions . | . . . . . . . . . . . . Robots Melted . | . . . . . . . . . . . . Combat Hostiles . | . . . . . . . . . . . . Parts Melted . | . . . . . . . . . . . . Heat Transferred 700 | . . . . . . . . 700 . . . Parts Sabotaged . | . . . . . . . . . . . . Parts Stolen 2 | . . . . . . . . . . 2 . Parts Stripped . | . . . . . . . . . . . . Power Chain Reactions . | . . . . . . . . . . . . Alert | -11 -10 -9 -9 -9 -8 -8 -8 -7 -7 -7 -7 ------- Run | Yrd Mat Mat Min Exi Min Mat Gar Fac Low Low Dat Maximum Alert Level 5 | . . . . . . . 4 5 . . . Low Security (%) 43 | 100 100 100 100 . 100 100 17 . . . . Level 1 8 | . . . . . . . 25 . . . . Level 2 26 | . . . . . . . 30 58 . . . Level 3 12 | . . . . . . . 13 26 . . . Level 4 7 | . . . . . . . 12 12 . . . Level 5 . | . . . . . . . . 1 . . . High Security . | . . . . . . . . . . . . Max Security . | . . . . . . . . . . . . Peak Influence 1607 | 5 180 71 16 . 90 50 1324 1607 . . . Initial 695 | . . 5 16 . . . 19 695 . . . Average 409 | . 70 26 . . 32 6 530 775 . . . Influence Increases 4164 | 10 327 355 . . 160 73 1365 1644 . 210 20 Destroy 0b10 Robot/C 2140 | . 200 220 . . 140 40 380 960 . 180 20 Destroy 0b10 Robot/NC 215 | 10 5 15 . . . . . 185 . . . Destroy Leader 454 | . 52 96 . . 20 20 20 216 . 30 . Allied During Kill 8 | . . . . . . . . 8 . . . Successful Hack 120 | . 10 24 . . . 8 28 50 . . . Disable Machine 135 | . . . . . . . . 135 . . . Anti-Garrison Action 850 | . . . . . . . 850 . . . . Destroy Structure 137 | . . . . . . 5 87 45 . . . Lose Combat Pursuer 105 | . 60 . . . . . . 45 . . . Influence Decreases 4164 | 10 314 324 44 . 158 45 71 1365 684 603 546 Entered New Map 1973 | . . 8 28 . . 2 11 629 594 175 526 Time Decay 1988 | 10 314 276 16 . 158 40 . 636 90 428 20 Lost Part 173 | . . 30 . . . 3 60 80 . . . Lost Ally 30 | . . 10 . . . . . 20 . . . Squads Dispatched 22 | . 3 1 . . . 2 . 16 . . . Investigation 3 | . 2 . . . . 1 . . . . . Extermination 3 | . . . . . . . . 3 . . . Reinforcement 6 | . 1 1 . . . . . 4 . . . Assault 4 | . . . . . . . . 4 . . . Garrison 6 | . . . . . . 1 . 5 . . . Intercept . | . . . . . . . . . . . . Searches Triggered . | . . . . . . . . . . . . Construction Impeded 1 | . . . . . . . . 1 . . . Haulers Reinforced 2 | . . . . . . . . 2 . . . Active Scanning Responses . | . . . . . . . . . . . . Cargo Convoy Interrupts . | . . . . . . . . . . . . Stealth | -11 -10 -9 -9 -9 -8 -8 -8 -7 -7 -7 -7 --------- Run | Yrd Mat Mat Min Exi Min Mat Gar Fac Low Low Dat Distress Signals 8 | . 1 2 . . . . . 5 . . . Communications Jammed . | . . . . . . . . . . . . Distress Signals . | . . . . . . . . . . . . Times Spotted 149 | . 25 14 . . 7 3 19 65 . 12 4 Peak Tracking Total 5 | . 4 2 . . 3 2 3 5 . 4 3 Tactical Retreats 5 | . 3 . . . . . . 2 . . . Traps | -11 -10 -9 -9 -9 -8 -8 -8 -7 -7 -7 -7 ------- Run | Yrd Mat Mat Min Exi Min Mat Gar Fac Low Low Dat Traps Triggered 14 | . 2 . . . . . 9 3 . . . Indirectly . | . . . . . . . . . . . . Trap Hack Attempts . | . . . . . . . . . . . . Triggered . | . . . . . . . . . . . . Disarmed . | . . . . . . . . . . . . Reprogrammed . | . . . . . . . . . . . . Reused . | . . . . . . . . . . . . Traps Extracted . | . . . . . . . . . . . . Installed . | . . . . . . . . . . . . Triggered . | . . . . . . . . . . . . Machines | -11 -10 -9 -9 -9 -8 -8 -8 -7 -7 -7 -7 ---------- Run | Yrd Mat Mat Min Exi Min Mat Gar Fac Low Low Dat Machines Disabled 12 | . . . . . . . 3 9 . . . Max in Single Turn 6 | . . . . . . . 1 6 . . . Garrison Access 1 | . . . . . . . . 1 . . . Garrison Relay 3 | . . . . . . . 3 . . . . Machines Repaired . | . . . . . . . . . . . . Machines Dismantled . | . . . . . . . . . . . . Machines Sabotaged . | . . . . . . . . . . . . Overloaded Fab Kills . | . . . . . . . . . . . . Hacking | -11 -10 -9 -9 -9 -8 -8 -8 -7 -7 -7 -7 --------- Run | Yrd Mat Mat Min Exi Min Mat Gar Fac Low Low Dat Machines Accessed 29 | . 6 5 1 2 . 2 3 5 . 1 4 Terminals 15 | . 4 3 1 . . 1 3 3 . . . Fabricators . | . . . . . . . . . . . . Repair Stations 1 | . 1 . . . . . . . . . . Recycling Units 3 | . 1 1 . . . . . 1 . . . Scanalyzers 2 | . . 1 . . . . . 1 . . . Garrison Access 1 | . . . . . . 1 . . . . . Total Hacks 88 | . 16 10 5 2 . 6 3 13 . 1 32 Successful 59 | . 7 6 2 2 . 3 2 4 . 1 32 Failed 29 | . 9 4 3 . . 3 1 9 . . . Catastrophic 2 | . 1 . . . . . 1 . . . . Database Lockouts . | . . . . . . . . . . . . Manual 38 | . 12 8 5 1 . 4 . 8 . . . Terminals 41 | . 13 8 5 . . 4 3 8 . . . Fabricators . | . . . . . . . . . . . . Repair Stations 1 | . 1 . . . . . . . . . . Recycling Units 5 | . 2 1 . . . . . 2 . . . Scanalyzers 4 | . . 1 . . . . . 3 . . . Garrison Access 2 | . . . . . . 2 . . . . . Terminal Hacks 39 | . 1 1 . 2 . . 2 . . 1 32 Record 12 | . . . . 1 . . . . . . 11 Part Schematic 13 | . . . . . . . . . . . 13 Robot Schematic 5 | . . . . . . . . . . . 5 Prototype ID Bank 3 | . . . . . . . . . . . 3 Open Door 1 | . . . . . . . . . . 1 . Branch Access Points 1 | . . 1 . . . . . . . . . Emergency Access Points 1 | . . . . . . . 1 . . . . Zone Layout 1 | . 1 . . . . . . . . . . Garrison Registry 1 | . . . . . . . 1 . . . . Proto ID Catalog 1 | . . . . 1 . . . . . . . Fabricator Hacks . | . . . . . . . . . . . . Repair Station Hacks . | . . . . . . . . . . . . Recycling Unit Hacks 4 | . 2 1 . . . . . 1 . . . Report Inventory 2 | . 1 . . . . . . 1 . . . Retrieve Components 2 | . 1 1 . . . . . . . . . Scanalyzer 1 | . . 1 . . . . . . . . . Insert Component 1 | . . 1 . . . . . . . . . Garrison Access Hacks 1 | . . . . . . 1 . . . . . Unlock Access 1 | . . . . . . 1 . . . . . Unauthorized Hacks 14 | . 4 3 2 . . 2 . 3 . . . Terminals 14 | . 4 3 2 . . 2 . 3 . . . Assimilate 1 | . 1 . . . . . . . . . . Botnet 9 | . 2 2 1 . . 1 . 3 . . . Skim 4 | . 1 1 1 . . 1 . . . . . Fabricators . | . . . . . . . . . . . . Repair Stations . | . . . . . . . . . . . . Recycling Units . | . . . . . . . . . . . . Scanalyzers . | . . . . . . . . . . . . Garrison Access . | . . . . . . . . . . . . Data Cores Recovered 1 | . . . . . . . . 1 . . . Used . | . . . . . . . . . . . . Hacking Detections 16 | . 5 2 1 . . 2 1 5 . . . Full Trace Events 2 | . 1 . . . . 1 . . . . . Feedback Events . | . . . . . . . . . . . . Feedback Blocked . | . . . . . . . . . . . . Robot Schematics Acquired 5 | . . . . . . . . . . . 5 Robots Built . | . . . . . . . . . . . . Authchips . | . . . . . . . . . . . . Time . | . . . . . . . . . . . . Total Robot Build Rating . | . . . . . . . . . . . . Part Schematics Acquired 13 | . . . . . . . . . . . 13 Parts Built . | . . . . . . . . . . . . Authchips . | . . . . . . . . . . . . Time . | . . . . . . . . . . . . Total Part Build Rating . | . . . . . . . . . . . . Parts Repaired . | . . . . . . . . . . . . Time . | . . . . . . . . . . . . Parts Recycled . | . . . . . . . . . . . . Recycled Matter . | . . . . . . . . . . . . Retrieved Matter . | . . . . . . . . . . . . Retrieved Components 7 | . 2 5 . . . . . . . . . Parts Scanalyzed . | . . . . . . . . . . . . Part Schematics Acquired . | . . . . . . . . . . . . Parts Damaged . | . . . . . . . . . . . . Bothacking | -11 -10 -9 -9 -9 -8 -8 -8 -7 -7 -7 -7 ------------ Run | Yrd Mat Mat Min Exi Min Mat Gar Fac Low Low Dat Used RIF Installer 2 | . . . . . . . 2 . . . . Watcher Feeds 1 | . . . . . . . 1 . . . . Robots Hacked 3 | . . . . . . . . 2 . . 1 Non-combat 1 | . . . . . . . . 1 . . . Combat 2 | . . . . . . . . 1 . . 1 Robot Hacks Applied 3 | . . . . . . . . 2 . . 1 parse_system 2 | . . . . . . . . 1 . . 1 formatsys_high 1 | . . . . . . . . 1 . . . Relay Couplers Released 14 | . . . . . . . 13 1 . . . Machine Destruction 14 | . . . . . . . 13 1 . . . Attached 1 | . . . . . . . . 1 . . . Fabnet Peak Effective % . | . . . . . . . . . . . . Robots Rewired . | . . . . . . . . . . . . Allies Hacked . | . . . . . . . . . . . . Hacks Repelled . | . . . . . . . . . . . . Allies | -11 -10 -9 -9 -9 -8 -8 -8 -7 -7 -7 -7 -------- Run | Yrd Mat Mat Min Exi Min Mat Gar Fac Low Low Dat Total Allies 2 | . 1 . . . . . . 1 . . . Largest Group 1 | . 1 1 . . . . . 1 . . . Highest-Rated Group 21 | . 10 10 . . . . . 21 . . . Highest-Rated Ally 21 | . 10 10 . . . . . 21 . . . Total Orders . | . . . . . . . . . . . . Ally Attacks 15 | . . . . . . . . 15 . . . Total Damage 336 | . . . . . . . . 336 . . . Kills 2 | . . . . . . . . 2 . . . Allies Corrupted . | . . . . . . . . . . . . Allies Melted . | . . . . . . . . . . . . Intel | -11 -10 -9 -9 -9 -8 -8 -8 -7 -7 -7 -7 ------- Run | Yrd Mat Mat Min Exi Min Mat Gar Fac Low Low Dat Active Infowar (turns) 2501 | 8 884 232 . . . 42 . 20 123 1054 138 Sensors 1335 | . . . . . . . . 20 123 1054 138 Seismic 1166 | 8 884 232 . . . 42 . . . . . Robot Analysis Total 151 | . . . . . . . . . . . 151 Derelict Logs Recovered 3 | . . . 2 . . . . . . 1 . Drone Launches . | . . . . . . . . . . . . Drone Recoveries . | . . . . . . . . . . . . Exploration | -11 -10 -9 -9 -9 -8 -8 -8 -7 -7 -7 -7 ------------- Run | Yrd Mat Mat Min Exi Min Mat Gar Fac Low Low Dat Turns Passed 9923 | 118 884 740 552 418 418 352 2803 2241 181 1054 162 Spaces Moved 4683 | 54 364 416 431 337 266 195 1009 789 238 448 136 Core 43 | 12 . . . . . . . 1 . . 30 Treads 2187 | 42 364 29 . . . 9 1009 734 . . . Legs . | . . . . . . . . . . . . Wheels 1607 | . . 387 431 337 266 186 . . . . . Hover . | . . . . . . . . . . . . Flight 846 | . . . . . . . . 54 238 448 106 Fastest Speed 26 | 50 160 120 120 120 120 120 240 50 50 160 26 Average Speed 176 | 135 200 134 120 120 120 125 240 235 50 223 31 Slowest Speed 1750 | 160 320 320 120 120 120 240 240 1750 50 227 50 Overloaded Moves . | . . . . . . . . . . . . Propulsion Burnouts . | . . . . . . . . . . . . Robots Hopped . | . . . . . . . . . . . . Potential Cave-ins . | . . . . . . . . . . . . Cave-ins Triggered . | . . . . . . . . . . . . Exploration Rate (%) 51 | 6 64 35 97 69 48 19 80 22 41 61 80 Regions Visited 11 Branch Regions 6 Pre-discovered Areas 27 | . . . . 1 . . . . . . 26 Known Exits Taken 5 | . . 1 . . . 1 . 1 1 1 . Unknown Exits Taken 5 | 1 1 . 1 1 1 . . . . . . Scrap Searched 10 | . . . 2 . 1 . . . 4 3 . Spaces Dug 7 | . . . . . . 5 2 . . . . Terrain Destroyed 113 | . . . . . . 5 2 41 . 57 8 Melee 2 | . . . . . . . 2 . . . . Projectile 23 | . . . . . . 5 . 18 . . . AOE 88 | . . . . . . . . 23 . 57 8 Terrain Rammed . | . . . . . . . . . . . . Walls Destroyed . | . . . . . . . . . . . . Machines Disabled . | . . . . . . . . . . . . Actions | -11 -10 -9 -9 -9 -8 -8 -8 -7 -7 -7 -7 --------- Run | Yrd Mat Mat Min Exi Min Mat Gar Fac Low Low Dat Total 5839 | 90 458 522 467 355 334 288 1217 1099 298 487 224 Wait 399 | 15 43 11 30 . 45 48 32 74 55 3 43 Move 4672 | 53 363 415 430 336 265 194 1008 788 237 447 136 Hop . | . . . . . . . . . . . . Pick Up 128 | 10 14 29 3 5 1 10 20 22 3 9 2 Fast Attach 24 | . . . . . 3 3 6 12 . . . Attach 55 | 7 . 6 . 1 . 7 4 13 1 7 9 Detach 8 | . . . . . 1 1 . 5 . . 1 Swap 50 | . 1 9 1 2 1 1 21 12 1 1 . Drop 107 | . 2 14 3 11 4 10 21 28 . 4 10 Fire 343 | 5 35 38 . . 14 14 76 142 1 16 2 Melee 37 | . . . . . . . 15 1 . . 21 Ram . | . . . . . . . . . . . . Kick . | . . . . . . . . . . . . Crush . | . . . . . . . . . . . . Escape Stasis 16 | . . . . . . . 14 2 . . . Rewire . | . . . . . . . . . . . . Trap . | . . . . . . . . . . . . Miscellaneous . | . . . . . . . . . . . . Route ------- -11/Scrapyard -10/Materials (discovered 2 exits: *Mat x2) -9/Materials -9/Mines (discovered 3 exits: *Mat x2 / *Exi) -9/Exiles -8/Mines -8/Materials (discovered 2 exits: *Fac / Gar) -8/Garrison (discovered 3 exits: *Fac x3) -7/Factory -7/Lower Caves -7/Lower Caves (discovered 2 exits: [*Fac] / *Dat) -7/Data Miner (discovered 1 exit: [*Pro]) History --------- Turn | Location | Event 7 | -11/Scrapyard | Discovered new exit (range 14) 119 | -11/Scrapyard | Entered Materials 303 | -10/Materials | Build established: Mutant 538 | -10/Materials | Discovered new exit (range 3) 929 | -10/Materials | Discovered new exit (range 5) 1003 | -10/Materials | Entered another Materials area 1003 | -9/Materials | Accompanied by 1 ally 1003 | -9/Materials | Evolved 2 slots: Propulsion x1, Weapon x1 1571 | -9/Materials | Identified exit to Mines 1743 | -9/Materials | Entered Mines 1792 | -9/Mines | Discovered new exit (range 8) 1808 | -9/Mines | Build established: Gunner 1873 | -9/Mines | Found a damaged Exp. Sensor Array with a note attached 1876 | -9/Mines | Found Prototype Device 1897 | -9/Mines | Learned Materials emergency access door positions 1903 | -9/Mines | Discovered new exit (range 9) 2067 | -9/Mines | YI-UF0 nonchalantly dropped a Grenade Launcher on the ground 2166 | -9/Mines | Learned Materials trap positions 2291 | -9/Mines | Deemed a non-threat by the Exiles lab entrance 2291 | -9/Mines | Discovered new exit (range 5) 2295 | -9/Mines | Entered Exiles 2328 | -9/Exiles | Met 8R-AWN 2342 | -9/Exiles | Met EX-HEX 2400 | -9/Exiles | Met EX-DEC 2420 | -9/Exiles | Learned location of Zion (-6) 2528 | -9/Exiles | Met EX-BIN 2545 | -9/Exiles | Aligned with FarCom system 2546 | -9/Exiles | Given EX-Vault access code 2574 | -9/Exiles | Opened EX-Vault 2584 | -9/Exiles | Found Longsword +1 2591 | -9/Exiles | Found Flying Fortress v7 2596 | -9/Exiles | Found XL Autogun Array 2620 | -9/Exiles | Warned to stay clear of 0b10 Research branches 2694 | -9/Exiles | Discovered new exit (range 14) 2713 | -9/Exiles | Stole three prototypes: Flying Fortress v7, XL Autogun Array, Longsword +1 2713 | -9/Exiles | Entered Mines 3014 | -8/Mines | Build established: Skirmisher 3125 | -8/Mines | Discovered new exit (range 6) 3131 | -8/Mines | Entered Materials 3131 | -8/Materials | Evolved 2 slots: Utility x2 3132 | -8/Materials | Loaded intel: 14 trap records 3411 | -8/Materials | Identified exit to Garrison 3420 | -8/Materials | Garrison activated, responded to threat 3431 | -8/Materials | Discovered new exit (range 8) 3483 | -8/Materials | Entered Garrison 3529 | -8/Garrison | Triggered checkpoint 3577 | -8/Garrison | Garrison Relay disabled 3702 | -8/Garrison | Installed Relay Interface Framework 3726 | -8/Garrison | Build established: Scavenger-Tank 4103 | -8/Garrison | Triggered checkpoint 4204 | -8/Garrison | Discovered new exit (range 10) 4257 | -8/Garrison | Triggered checkpoint 4272 | -8/Garrison | Garrison Relay disabled 4421 | -8/Garrison | Triggered checkpoint 4583 | -8/Garrison | Build established: Bothacker-Tank 5008 | -8/Garrison | Expanded RIF knowledge: Watcher Feeds 5118 | -8/Garrison | Discovered new exit (range 12) 5121 | -8/Garrison | Triggered checkpoint 5176 | -8/Garrison | Garrison Relay disabled 5639 | -8/Garrison | Discovered new exit (range 64) 5639 | -8/Garrison | Discovered new exit (range 30) 5639 | -8/Garrison | Discovered new exit (range 29) 5936 | -8/Garrison | Build established: Bothacker-Skirmisher 6183 | -8/Garrison | Triggered checkpoint 6269 | -8/Garrison | Build established: Bothacker-Gunner 6286 | -8/Garrison | Entered Factory 6286 | -7/Factory | Evolved 2 slots: Propulsion x1, Weapon x1 6288 | -7/Factory | FarCom data flow suspended 7649 | -7/Factory | Destroyed 7 combat bots 7886 | -7/Factory | First assault squad dispatched 7999 | -7/Factory | Garrison activated, responded to threat 8329 | -7/Factory | Garrison activated, responded to threat 8498 | -7/Factory | Lost 4 parts (1n2u1w) 8507 | -7/Factory | Identified Exp. Sensor Array 8525 | -7/Factory | Discovered new exit (range 4) 8527 | -7/Factory | Identified exit to Lower Caves 8527 | -7/Factory | Entered Lower Caves 8701 | -7/Lower Caves | Discovered new exit (range 15) 8707 | -7/Lower Caves | Identified exit to Lower Caves 8708 | -7/Lower Caves | Entered another Lower Caves area 8708 | -7/Lower Caves | Spotted MD-Y4B(f) 8709 | -7/Lower Caves | Flying Fortress v7 stolen by Master Thief 8710 | -7/Lower Caves | Encountered a Master Thief 8725 | -7/Lower Caves | Spotted M5-SUR(f) 8726 | -7/Lower Caves | Encountered a Master Thief 8732 | -7/Lower Caves | Longsword +1 stolen by Master Thief 8769 | -7/Lower Caves | Discovered new exit (range 14) 8881 | -7/Lower Caves | Build established: Bothacker-Skirmisher 9555 | -7/Lower Caves | Learned Factory emergency access door positions 9739 | -7/Lower Caves | Discovered new exit (range 12) 9760 | -7/Lower Caves | Identified exit to Data Miner 9762 | -7/Lower Caves | Entered Data Miner 9773 | -7/Data Miner | Discovered new exit (range 6) 9777 | -7/Data Miner | Met Data Miner 9783 | -7/Data Miner | Learned location of Section 7 (-2) 9783 | -7/Data Miner | Acquired the access code to Warlord's prototype stash 9786 | -7/Data Miner | Received God Mode back door access code from Data Miner 9793 | -7/Data Miner | Destroyed Data Miner 9795 | -7/Data Miner | Interfaced with the Data Conduit 9892 | -7/Data Miner | Core integrity fell below 50% 9905 | -7/Data Miner | Core integrity fell below 20% 9908 | -7/Data Miner | Found Prototype Hackware 9910 | -7/Data Miner | Found Prototype Hackware 9911 | -7/Data Miner | Identified System Mapper 9912 | -7/Data Miner | Identified Ghost Barrier 9924 | -7/Data Miner | Destroyed by Enhanced Grunt with Neutron Cannon Last Messages --------------- 09888_ Dropped Enh. Nuclear Core. 09888_ Axe follow-up attack on Enhanced Grunt. 09889_ Great Axe destroyed. 09891_ Axe destroyed. 09891_ Imp. VTOL Module destroyed. 09893_ Cld. VTOL Module destroyed. 09893_ Enhanced Grunt destroyed. 09898_ Mak. Sword destroyed. 09898_ Imp. VTOL Module destroyed. 09900_ Imp. Grenade Launcher destroyed. 09900_ Destroyed Imp. Grenade Launcher. 09900_ Exp. Sensor Array destroyed. 09900_ Destroyed Exp. Sensor Array. 09903_ Jacked Enhanced Grunt... >>parse_system Reading system data... 09904_ System corrupted: Component data lost. 09908_ Acquired Prototype Hackware. 09911_ Identified System Mapper. 09912_ Identified Ghost Barrier. Map ----- +----------------------------------------------------+ | | | | | | | | | | | | | | | | | | | | | | | | | | | | | | | | | | | ??????????????????????????????????????????? | | ??????????????????????????????????????????? | | ??????????????????????????????????????????? | | ??????????????????????????????????????????? | | ??????????????????????????????####????????? | | ##############????#########?### #????????? | | """""""""""""###### # # # ### #????????? | | """""" """" """; # # # ## < ##????????? | | """"" @ ######???? | | " !!![!#???? | | " !][]!#???? | | "" * g ]][!#???? | | """ !!=##???? | | """ """"""""""""""""#####????? | | """ """"###############????????? | | """" """""###??????????????????????? | | """""" "#####????????????????????????? | | #####"## "#????????????????????????????? | | ????#"### "#????????????????????????????? | | ????#"### "#????????????????????????????? | | ????#"?# "#????????????????????????????? | | ??????## "#????????????????????????????? | | ??????# "#????????????????????????????? | | ??????### "#????????????????????????????? | | ????????# "##???????????????????????????? | | ???????## ""#???????????????????????????? | | ??????## ""#???????????????????????????? | | ???##"#"X ""#???????????????????????????? | | ???""""" "####????????????????????????? | | ???""""" X"""""????????????????????????? | | ???##"#"X "##"#????????????????????????? | | ????#?## X""""#????????????????????????? | | ???????## "##"#????????????????????????? | +----------------------------------------------------+ Best States ------------- Heat Dissipation 48 Energy Generation 17 Energy Capacity 300 Matter Stores 414 Matter Capacity 450 Sight Range 16 Robot Scan Range 20 Terrain Scan Density 10 Armor Coverage 375 Propulsion Shielding 66 Evasion (%) 64 Targeting Accuracy 16 Target Analysis 5 Recoil Reduction 4 Kinecelleration 30 Offensive Hacking 20 Defensive Hacking 20 Relay Coupler Types 1 Relay Coupler Value 3 Item Schematics ----------------- Combat Drone Bay | -7/Data Miner | Free Lgt. Regenerative Plating | -7/Data Miner | Free Cld. Cesium-ion Thruster | -7/Data Miner | Free Exp. Targeting Computer | -7/Data Miner | Free Cld. Plasma Cannon | -7/Data Miner | Free Lrn. Tractor Beam | -7/Data Miner | Free Thunder Leg | -7/Data Miner | Free Hvy. Shock Bomb Launcher | -7/Data Miner | Free Fission Core | -7/Data Miner | Free Field Propulsion Drive | -7/Data Miner | Free Imp. Thermal Shield | -7/Data Miner | Free Adv. VSS Leg | -7/Data Miner | Free Imp. Phase Shifter | -7/Data Miner | Free Robot Schematics ------------------ H-66 Slayer | -7/Data Miner | Free A-15 Conveyor | -7/Data Miner | Free L-41 Fighter | -7/Data Miner | Free R-10 Processor | -7/Data Miner | Free B-60 Warrior | -7/Data Miner | Free Fabricated ------------ Nothing Repaired ---------- Nothing Alien Tech Used ----------------- None Achievements -------------- Unlimited Data Challenges ------------ None Game ------ Seed AutogunElectronJammer Manual? 0 Play Time 01:16:27 Cumulative 255.5 hours Start 2025.09.03 @ 13:22:44 End 2025.09.04 @ 11:54:13 Sessions 9 Manual Loads 0 Difficulty Rogue Special Mode None Game No. 377 Rogue 377 Adventurer 0 Explorer 0 Win Type - Total 5 Types 4/0/1/0/0/0/0/0/0/0 Lore% 83 Gallery% 79 Achievement% 61 Wizard Run 0 Options --------- Layout 0 ASCII 0 Keyboard 0 Movement Mouse Keybinds 0 Fullscreen 1 Font 18/SmallcapsGlow Map View 76x50 Zoom Use 0% Tactical HUD 1 Map Filters NONE Filters NONE Steam 1 RUN: 29ac5d3f-0e0e-454e-9d3a-86727fec3332